[Event "Titled Tuesday Blitz November 15 Early 2022"]
[White "Tymrakiewicz, Rafal"]
[Black "Szpar, Milosz"]
[WhiteFideId "1108832"]
[BlackFideId "1184989"]
[WhiteElo "2138"]
[BlackElo "2422"]
[Result "1-0"]
[Round "05"]
[TimeControl "180+1"]
[Date "2022.11.16"]
[WhiteClock "0:00:13"]
[BlackClock "0:00:19"]

1. d4 {[%clk 0:02:55]}  Nf6 {[%clk 0:02:58]} 2. Bg5 {[%clk 0:02:55]}  c5 {[%clk 0:02:56]} 3. d5 {[%clk 0:02:51]}  g6 {[%clk 0:02:38]} 4. Nc3 {[%clk 0:02:50]}  Bg7 {[%clk 0:02:38]} 5. a4 {[%clk 0:02:43]}  O-O {[%clk 0:02:37]} 6. e4 {[%clk 0:02:43]}  h6 {[%clk 0:02:36]} 7. Bh4 {[%clk 0:02:34]}  g5 {[%clk 0:02:34]} 8. Bg3 {[%clk 0:02:33]}  e6 {[%clk 0:02:34]} 9. dxe6 {[%clk 0:02:12]}  fxe6 {[%clk 0:02:31]} 10. e5 {[%clk 0:02:08]}  Ne8 {[%clk 0:02:25]} 11. h4 {[%clk 0:02:06]}  Nc6 {[%clk 0:02:23]} 12. hxg5 {[%clk 0:02:06]}  Qxg5 {[%clk 0:02:22]} 13. Nf3 {[%clk 0:01:59]}  Qe7 {[%clk 0:02:14]} 14. Bd3 {[%clk 0:01:50]}  b6 {[%clk 0:02:13]} 15. Qe2 {[%clk 0:01:48]}  Bb7 {[%clk 0:02:13]} 16. Qe4 {[%clk 0:01:44]}  Rf7 {[%clk 0:01:47]} 17. Qh7+ {[%clk 0:01:32]}  Kf8 {[%clk 0:01:47]} 18. Bh4 {[%clk 0:01:33]}  d5 {[%clk 0:01:35]} 19. Bxe7+ {[%clk 0:01:25]}  Kxe7 {[%clk 0:01:35]} 20. Bg6 {[%clk 0:01:16]}  d4 {[%clk 0:01:28]} 21. Nb5 {[%clk 0:01:05]}  Nb4 {[%clk 0:01:25]} 22. Bxf7 {[%clk 0:01:02]}  Kxf7 {[%clk 0:01:25]} 23. Rxh6 {[%clk 0:00:54]}  Nxc2+ {[%clk 0:01:23]} 24. Qxc2 {[%clk 0:00:42]}  Bxh6 {[%clk 0:01:23]} 25. Qh7+ {[%clk 0:00:42]}  Bg7 {[%clk 0:01:21]} 26. Ng5+ {[%clk 0:00:40]}  Ke7 {[%clk 0:01:20]} 27. Qg6 {[%clk 0:00:39]}  Bd5 {[%clk 0:01:15]} 28. Nd6 {[%clk 0:00:35]}  Bxe5 {[%clk 0:01:11]} 29. Nxe8 {[%clk 0:00:32]}  Rxe8 {[%clk 0:01:11]} 30. Qh7+ {[%clk 0:00:29]}  Kf6 {[%clk 0:01:10]} 31. Qf7+ {[%clk 0:00:25]}  Kxg5 {[%clk 0:01:10]} 32. Qxe8 {[%clk 0:00:25]}  d3 {[%clk 0:01:03]} 33. g3 {[%clk 0:00:19]}  Bxb2 {[%clk 0:00:58]} 34. Qg8+ {[%clk 0:00:19]}  Kf5 {[%clk 0:00:55]} 35. Qh7+ {[%clk 0:00:18]}  Kg5 {[%clk 0:00:52]} 36. Rd1 {[%clk 0:00:18]}  c4 {[%clk 0:00:48]} 37. Rxd3 {[%clk 0:00:17]}  cxd3 {[%clk 0:00:47]} 38. Qxd3 {[%clk 0:00:18]}  Kf6 {[%clk 0:00:32]} 39. f3 {[%clk 0:00:17]}  a5 {[%clk 0:00:31]} 40. g4 {[%clk 0:00:17]}  Be5 {[%clk 0:00:28]} 41. Kf2 {[%clk 0:00:17]}  Bd6 {[%clk 0:00:27]} 42. Qd4+ {[%clk 0:00:14]}  Kg5 {[%clk 0:00:24]} 43. Qxb6 {[%clk 0:00:14]}  Bb4 {[%clk 0:00:24]} 44. Qe3+ {[%clk 0:00:14]}  Kf6 {[%clk 0:00:24]} 45. Qd4+ {[%clk 0:00:14]}  Kg5 {[%clk 0:00:23]} 46. Qg7+ {[%clk 0:00:13]}  Kf4 {[%clk 0:00:19]} 47. Qf6# {[%clk 0:00:13]} 1-0


[Site "https://www.chess.com"]

[Event "Titled Tuesday Blitz November 15 Early 2022"]
[White "Urbina Quiroz, Edwin"]
[Black "Calcada, Lucas Galvan"]
[WhiteFideId "6500650"]
[BlackFideId "22746099"]
[WhiteElo "2152"]
[BlackElo "1523"]
[Result "0-1"]
[Round "05"]
[TimeControl "180+1"]
[Date "2022.11.16"]
[WhiteClock "0:00:40"]
[BlackClock "0:00:46"]

1. d4 {[%clk 0:03:00]}  Nf6 {[%clk 0:02:58]} 2. c4 {[%clk 0:03:00]}  g6 {[%clk 0:02:58]} 3. Nc3 {[%clk 0:03:00]}  Bg7 {[%clk 0:02:58]} 4. e4 {[%clk 0:03:01]}  d6 {[%clk 0:02:59]} 5. Be2 {[%clk 0:03:01]}  O-O {[%clk 0:02:59]} 6. Bg5 {[%clk 0:03:02]}  c5 {[%clk 0:02:58]} 7. d5 {[%clk 0:03:02]}  e6 {[%clk 0:02:56]} 8. Qd2 {[%clk 0:03:02]}  exd5 {[%clk 0:02:56]} 9. cxd5 {[%clk 0:03:03]}  Re8 {[%clk 0:02:55]} 10. f3 {[%clk 0:03:03]}  h5 {[%clk 0:02:55]} 11. h4 {[%clk 0:02:39]}  a6 {[%clk 0:02:54]} 12. a4 {[%clk 0:02:37]}  Nbd7 {[%clk 0:02:50]} 13. Nh3 {[%clk 0:02:35]}  Qc7 {[%clk 0:02:49]} 14. O-O {[%clk 0:02:31]}  Ne5 {[%clk 0:02:47]} 15. Rac1 {[%clk 0:02:04]}  Bxh3 {[%clk 0:02:46]} 16. gxh3 {[%clk 0:02:03]}  Rab8 {[%clk 0:02:37]} 17. f4 {[%clk 0:02:02]}  Ned7 {[%clk 0:02:31]} 18. e5 {[%clk 0:01:53]}  dxe5 {[%clk 0:02:04]} 19. f5 {[%clk 0:01:47]}  c4 {[%clk 0:01:42]} 20. d6 {[%clk 0:01:39]}  Qc5+ {[%clk 0:01:23]} 21. Be3 {[%clk 0:01:39]}  Qc6 {[%clk 0:01:23]} 22. Kh2 {[%clk 0:01:24]}  b5 {[%clk 0:01:16]} 23. axb5 {[%clk 0:01:14]}  axb5 {[%clk 0:01:17]} 24. b4 {[%clk 0:01:14]}  Rbd8 {[%clk 0:00:56]} 25. Bf3 {[%clk 0:01:10]}  e4 {[%clk 0:00:55]} 26. Bh1 {[%clk 0:01:02]}  Ne5 {[%clk 0:00:54]} 27. fxg6 {[%clk 0:00:56]}  fxg6 {[%clk 0:00:50]} 28. Rxf6 {[%clk 0:00:43]}  Bxf6 {[%clk 0:00:50]} 29. Bxe4 {[%clk 0:00:42]}  Qxd6 {[%clk 0:00:49]} 30. Qg2 {[%clk 0:00:40]}  Ng4+ {[%clk 0:00:46]} 0-1


[Site "https://www.chess.com"]

[Event "Titled Tuesday Blitz November 15 Early 2022"]
[White "Vokhidov, Shamsiddin"]
[Black "Acor, Corey"]
[WhiteFideId "14204223"]
[BlackFideId "2024861"]
[WhiteElo "2619"]
[BlackElo "2340"]
[Result "1-0"]
[Round "05"]
[TimeControl "180+1"]
[Date "2022.11.15"]
[WhiteClock "0:01:07"]
[BlackClock "0:00:08"]

1. e4 {[%clk 0:03:00]}  e5 {[%clk 0:02:58]} 2. Nf3 {[%clk 0:03:00]}  Nc6 {[%clk 0:02:59]} 3. Bb5 {[%clk 0:03:01]}  Nge7 {[%clk 0:02:58]} 4. Nc3 {[%clk 0:03:00]}  d6 {[%clk 0:02:59]} 5. d4 {[%clk 0:02:59]}  Bd7 {[%clk 0:02:56]} 6. O-O {[%clk 0:02:55]}  Ng6 {[%clk 0:02:51]} 7. Re1 {[%clk 0:02:47]}  Be7 {[%clk 0:02:51]} 8. Nd5 {[%clk 0:02:37]}  O-O {[%clk 0:02:49]} 9. h3 {[%clk 0:02:36]}  exd4 {[%clk 0:02:44]} 10. Bxc6 {[%clk 0:02:29]}  bxc6 {[%clk 0:02:41]} 11. Nxe7+ {[%clk 0:02:29]}  Qxe7 {[%clk 0:02:42]} 12. Nxd4 {[%clk 0:02:29]}  Rfe8 {[%clk 0:02:32]} 13. Bd2 {[%clk 0:02:26]}  Qf6 {[%clk 0:02:18]} 14. Bc3 {[%clk 0:02:22]}  Qg5 {[%clk 0:02:17]} 15. Nf3 {[%clk 0:02:05]}  Qh5 {[%clk 0:02:16]} 16. Re3 {[%clk 0:02:01]}  c5 {[%clk 0:02:10]} 17. Nd2 {[%clk 0:01:57]}  Qxd1+ {[%clk 0:01:41]} 18. Rxd1 {[%clk 0:01:58]}  f6 {[%clk 0:01:41]} 19. f3 {[%clk 0:01:55]}  Nf4 {[%clk 0:01:39]} 20. Kf2 {[%clk 0:01:54]}  a5 {[%clk 0:01:29]} 21. h4 {[%clk 0:01:41]}  a4 {[%clk 0:01:26]} 22. Nf1 {[%clk 0:01:39]}  Ng6 {[%clk 0:01:11]} 23. h5 {[%clk 0:01:37]}  Nf4 {[%clk 0:01:02]} 24. h6 {[%clk 0:01:35]}  Ng6 {[%clk 0:00:48]} 25. Ng3 {[%clk 0:01:32]}  Nf4 {[%clk 0:00:34]} 26. hxg7 {[%clk 0:01:28]}  Kxg7 {[%clk 0:00:33]} 27. Rh1 {[%clk 0:01:29]}  Kg6 {[%clk 0:00:33]} 28. Rh4 {[%clk 0:01:25]}  Ne6 {[%clk 0:00:31]} 29. Nf5 {[%clk 0:01:21]}  h5 {[%clk 0:00:25]} 30. Re1 {[%clk 0:01:12]}  Ng5 {[%clk 0:00:20]} 31. Ng3 {[%clk 0:01:09]}  Rh8 {[%clk 0:00:11]} 32. Reh1 {[%clk 0:01:07]}  Rag8 {[%clk 0:00:08]} 33. Nxh5 {[%clk 0:01:07]} 1-0


[Site "https://www.chess.com"]

[Event "Titled Tuesday Blitz November 15 Early 2022"]
[White "Volkov, Maksim"]
[Black "Devaev, Alexander"]
[WhiteFideId "54123070"]
[BlackFideId "4169395"]
[WhiteElo "2257"]
[BlackElo "2225"]
[Result "1-0"]
[Round "05"]
[TimeControl "180+1"]
[Date "2022.11.16"]
[WhiteClock "0:00:43"]
[BlackClock "0:00:01"]

1. d4 {[%clk 0:02:24]}  Nf6 {[%clk 0:02:58]} 2. c4 {[%clk 0:02:24]}  e6 {[%clk 0:02:57]} 3. g3 {[%clk 0:02:23]}  c5 {[%clk 0:02:51]} 4. d5 {[%clk 0:02:23]}  exd5 {[%clk 0:02:51]} 5. cxd5 {[%clk 0:02:24]}  d6 {[%clk 0:02:52]} 6. Nc3 {[%clk 0:02:23]}  g6 {[%clk 0:02:53]} 7. Bg2 {[%clk 0:02:24]}  Bg7 {[%clk 0:02:53]} 8. Nf3 {[%clk 0:02:24]}  O-O {[%clk 0:02:54]} 9. O-O {[%clk 0:02:25]}  a6 {[%clk 0:02:50]} 10. a4 {[%clk 0:02:24]}  Nbd7 {[%clk 0:02:51]} 11. Bf4 {[%clk 0:02:24]}  Ne8 {[%clk 0:02:50]} 12. e4 {[%clk 0:02:22]}  Rb8 {[%clk 0:02:50]} 13. Re1 {[%clk 0:02:19]}  b5 {[%clk 0:02:39]} 14. axb5 {[%clk 0:02:18]}  axb5 {[%clk 0:02:40]} 15. Bf1 {[%clk 0:02:19]}  b4 {[%clk 0:02:34]} 16. Nb5 {[%clk 0:02:19]}  Rb6 {[%clk 0:02:15]} 17. Ra7 {[%clk 0:01:49]}  Ba6 {[%clk 0:02:01]} 18. Nxd6 {[%clk 0:01:43]}  Bxf1 {[%clk 0:01:46]} 19. Nxe8 {[%clk 0:01:42]}  Qxe8 {[%clk 0:01:32]} 20. Kxf1 {[%clk 0:01:40]}  Bxb2 {[%clk 0:01:32]} 21. e5 {[%clk 0:01:36]}  Bc3 {[%clk 0:01:33]} 22. e6 {[%clk 0:01:31]}  fxe6 {[%clk 0:00:49]} 23. Rxe6 {[%clk 0:01:25]}  Rxe6 {[%clk 0:00:21]} 24. dxe6 {[%clk 0:01:26]}  Nf6 {[%clk 0:00:21]} 25. Qb3 {[%clk 0:01:17]}  Qb5+ {[%clk 0:00:21]} 26. Kg1 {[%clk 0:01:14]}  c4 {[%clk 0:00:22]} 27. Qd1 {[%clk 0:01:11]}  Qd5 {[%clk 0:00:17]} 28. Qe2 {[%clk 0:01:06]}  Re8 {[%clk 0:00:14]} 29. e7 {[%clk 0:01:05]}  Qe4 {[%clk 0:00:10]} 30. Be3 {[%clk 0:00:53]}  Nd5 {[%clk 0:00:10]} 31. Ng5 {[%clk 0:00:47]}  Qb1+ {[%clk 0:00:10]} 32. Kg2 {[%clk 0:00:47]}  Bf6 {[%clk 0:00:09]} 33. Qxc4 {[%clk 0:00:46]}  Qd1 {[%clk 0:00:05]} 34. Ne4 {[%clk 0:00:44]}  Bxe7 {[%clk 0:00:03]} 35. Rxe7 {[%clk 0:00:44]}  Rxe7 {[%clk 0:00:04]} 36. Nf6+ {[%clk 0:00:44]}  Kg7 {[%clk 0:00:03]} 37. Nxd5 {[%clk 0:00:45]}  b3 {[%clk 0:00:02]} 38. Nxe7 {[%clk 0:00:44]}  b2 {[%clk 0:00:02]} 39. Bd4+ {[%clk 0:00:44]}  Kh6 {[%clk 0:00:01]} 40. Ng8+ {[%clk 0:00:43]} 1-0


[Site "https://www.chess.com"]

[Event "Titled Tuesday Blitz November 15 Early 2022"]
[White "Wirig, Anthony"]
[Black "Gabrielian, Artur"]
[WhiteFideId "615013"]
[BlackFideId "4131002"]
[WhiteElo "2487"]
[BlackElo "2432"]
[Result "0-1"]
[Round "05"]
[TimeControl "180+1"]
[Date "2022.11.15"]
[WhiteClock "0:00:07"]
[BlackClock "0:00:30"]

1. d4 {[%clk 0:03:00]}  Nf6 {[%clk 0:02:58]} 2. Bg5 {[%clk 0:03:00]}  g6 {[%clk 0:02:54]} 3. Bxf6 {[%clk 0:03:00]}  exf6 {[%clk 0:02:55]} 4. e3 {[%clk 0:03:01]}  d5 {[%clk 0:02:54]} 5. c4 {[%clk 0:02:59]}  dxc4 {[%clk 0:02:53]} 6. Bxc4 {[%clk 0:03:00]}  Bd6 {[%clk 0:02:53]} 7. Nc3 {[%clk 0:02:59]}  Nd7 {[%clk 0:02:52]} 8. h4 {[%clk 0:02:59]}  h5 {[%clk 0:02:49]} 9. Qc2 {[%clk 0:02:59]}  f5 {[%clk 0:02:49]} 10. Nf3 {[%clk 0:02:57]}  Nf6 {[%clk 0:02:48]} 11. Ng5 {[%clk 0:02:55]}  O-O {[%clk 0:02:47]} 12. O-O-O {[%clk 0:02:48]}  Qe7 {[%clk 0:02:47]} 13. Kb1 {[%clk 0:02:41]}  a6 {[%clk 0:02:46]} 14. Bb3 {[%clk 0:02:13]}  Bd7 {[%clk 0:02:44]} 15. Ka1 {[%clk 0:02:10]}  Kg7 {[%clk 0:02:42]} 16. g3 {[%clk 0:02:01]}  Rad8 {[%clk 0:02:40]} 17. Rhe1 {[%clk 0:02:00]}  c5 {[%clk 0:02:37]} 18. f4 {[%clk 0:01:34]}  Rde8 {[%clk 0:01:50]} 19. Nf3 {[%clk 0:01:16]}  cxd4 {[%clk 0:01:42]} 20. exd4 {[%clk 0:01:09]}  Ne4 {[%clk 0:01:41]} 21. Nxe4 {[%clk 0:00:52]}  fxe4 {[%clk 0:01:39]} 22. Ne5 {[%clk 0:00:52]}  Bf5 {[%clk 0:01:39]} 23. Rc1 {[%clk 0:00:42]}  Bb4 {[%clk 0:01:32]} 24. Red1 {[%clk 0:00:27]}  f6 {[%clk 0:01:12]} 25. g4 {[%clk 0:00:21]}  hxg4 {[%clk 0:01:10]} 26. Nc4 {[%clk 0:00:21]}  e3 {[%clk 0:01:10]} 27. Qe2 {[%clk 0:00:21]}  Rh8 {[%clk 0:00:46]} 28. d5 {[%clk 0:00:20]}  Bd6 {[%clk 0:00:43]} 29. Rf1 {[%clk 0:00:16]}  Rxh4 {[%clk 0:00:42]} 30. Rc3 {[%clk 0:00:17]}  Rh3 {[%clk 0:00:41]} 31. a3 {[%clk 0:00:17]}  Rf3 {[%clk 0:00:33]} 32. Re1 {[%clk 0:00:16]}  Rf2 {[%clk 0:00:33]} 33. Qd1 {[%clk 0:00:16]}  e2 {[%clk 0:00:31]} 34. Qd2 {[%clk 0:00:16]}  Rf1 {[%clk 0:00:31]} 35. Ka2 {[%clk 0:00:16]}  Rxe1 {[%clk 0:00:31]} 36. Qxe1 {[%clk 0:00:17]}  Bxf4 {[%clk 0:00:31]} 37. d6 {[%clk 0:00:16]}  Bxd6 {[%clk 0:00:30]} 38. Re3 {[%clk 0:00:16]}  Qxe3 {[%clk 0:00:30]} 39. Nxe3 {[%clk 0:00:17]}  Rxe3 {[%clk 0:00:30]} 40. Bc4 {[%clk 0:00:07]}  Be6 {[%clk 0:00:30]} 41. Bxe6 {[%clk 0:00:07]}  Rxe6 {[%clk 0:00:30]} 0-1


[Site "https://www.chess.com"]

[Event "Titled Tuesday Blitz November 15 Early 2022"]
[White "Yuan, Qingyu"]
[Black "Lehtosaari, Mauri"]
[WhiteFideId "8609772"]
[BlackFideId "501999"]
[WhiteElo "2359"]
[BlackElo "2503"]
[Result "1-0"]
[Round "05"]
[TimeControl "180+1"]
[Date "2022.11.16"]
[WhiteClock "0:00:51"]
[BlackClock "0:00:20"]

1. e4 {[%clk 0:03:00]}  c5 {[%clk 0:02:56]} 2. Nf3 {[%clk 0:03:00]}  e6 {[%clk 0:02:53]} 3. b3 {[%clk 0:03:00]}  b6 {[%clk 0:02:47]} 4. d4 {[%clk 0:03:00]}  d5 {[%clk 0:02:21]} 5. exd5 {[%clk 0:02:45]}  Qxd5 {[%clk 0:02:15]} 6. Nc3 {[%clk 0:02:41]}  Qd8 {[%clk 0:02:14]} 7. d5 {[%clk 0:02:35]}  a6 {[%clk 0:01:57]} 8. Bb2 {[%clk 0:02:31]}  Nf6 {[%clk 0:01:57]} 9. Qe2 {[%clk 0:02:17]}  Be7 {[%clk 0:01:43]} 10. dxe6 {[%clk 0:01:41]}  Bxe6 {[%clk 0:01:41]} 11. Ng5 {[%clk 0:01:40]}  Bf5 {[%clk 0:01:35]} 12. Qf3 {[%clk 0:01:25]}  O-O {[%clk 0:00:49]} 13. Qxf5 {[%clk 0:01:21]}  Nc6 {[%clk 0:00:40]} 14. Bd3 {[%clk 0:01:10]}  Nd4 {[%clk 0:00:35]} 15. Qh3 {[%clk 0:01:10]}  h6 {[%clk 0:00:35]} 16. Nf3 {[%clk 0:01:09]}  Bd6 {[%clk 0:00:30]} 17. O-O {[%clk 0:01:05]}  Qc7 {[%clk 0:00:28]} 18. Nxd4 {[%clk 0:01:04]}  cxd4 {[%clk 0:00:29]} 19. Ne2 {[%clk 0:01:04]}  Rad8 {[%clk 0:00:25]} 20. Bxd4 {[%clk 0:01:03]}  Be5 {[%clk 0:00:26]} 21. Bxe5 {[%clk 0:01:03]}  Qxe5 {[%clk 0:00:27]} 22. Qg3 {[%clk 0:01:00]}  Qb2 {[%clk 0:00:25]} 23. a4 {[%clk 0:00:54]}  a5 {[%clk 0:00:24]} 24. Rfb1 {[%clk 0:00:51]}  Nh5 {[%clk 0:00:20]} 25. Rxb2 {[%clk 0:00:50]}  Nxg3 {[%clk 0:00:20]} 26. hxg3 {[%clk 0:00:51]} 1-0


[Site "https://www.chess.com"]

[Event "Titled Tuesday Blitz November 15 Early 2022"]
[White "Zemlyanskii, Ivan"]
[Black "Sharifov, Mekhriddin"]
[WhiteFideId "24249971"]
[BlackFideId "14701545"]
[WhiteElo "2107"]
[BlackElo "2109"]
[Result "1/2-1/2"]
[Round "05"]
[TimeControl "180+1"]
[Date "2022.11.16"]
[WhiteClock "0:00:05"]
[BlackClock "0:00:07"]

1. d4 {[%clk 0:03:00]}  Nf6 {[%clk 0:03:00]} 2. c4 {[%clk 0:03:00]}  e6 {[%clk 0:03:00]} 3. g3 {[%clk 0:03:00]}  Bb4+ {[%clk 0:02:59]} 4. Nd2 {[%clk 0:03:00]}  c5 {[%clk 0:02:59]} 5. a3 {[%clk 0:02:49]}  Bxd2+ {[%clk 0:02:57]} 6. Qxd2 {[%clk 0:02:48]}  cxd4 {[%clk 0:02:58]} 7. Nf3 {[%clk 0:02:38]}  d5 {[%clk 0:02:58]} 8. cxd5 {[%clk 0:02:31]}  e5 {[%clk 0:02:58]} 9. Nxe5 {[%clk 0:02:20]}  Qxd5 {[%clk 0:02:58]} 10. Nf3 {[%clk 0:02:20]}  Nc6 {[%clk 0:02:58]} 11. Bg2 {[%clk 0:02:21]}  O-O {[%clk 0:02:58]} 12. O-O {[%clk 0:02:21]}  Bg4 {[%clk 0:02:45]} 13. h3 {[%clk 0:02:18]}  Bh5 {[%clk 0:02:36]} 14. Rd1 {[%clk 0:02:14]}  Rad8 {[%clk 0:02:33]} 15. Qg5 {[%clk 0:01:55]}  Qb3 {[%clk 0:01:50]} 16. Rd3 {[%clk 0:01:29]}  Qc2 {[%clk 0:01:41]} 17. Qd2 {[%clk 0:01:18]}  Qc4 {[%clk 0:01:22]} 18. b3 {[%clk 0:01:16]}  Qe6 {[%clk 0:01:18]} 19. Bb2 {[%clk 0:01:02]}  Bg6 {[%clk 0:01:16]} 20. Nxd4 {[%clk 0:00:57]}  Nxd4 {[%clk 0:00:43]} 21. Rxd4 {[%clk 0:00:57]}  Rde8 {[%clk 0:00:36]} 22. Rb4 {[%clk 0:00:45]}  Qxe2 {[%clk 0:00:35]} 23. Qxe2 {[%clk 0:00:43]}  Rxe2 {[%clk 0:00:35]} 24. Bxf6 {[%clk 0:00:44]}  gxf6 {[%clk 0:00:36]} 25. Rxb7 {[%clk 0:00:42]}  Rb2 {[%clk 0:00:32]} 26. Bd5 {[%clk 0:00:27]}  Rd8 {[%clk 0:00:32]} 27. Bc4 {[%clk 0:00:19]}  a5 {[%clk 0:00:23]} 28. Re1 {[%clk 0:00:15]}  Rdd2 {[%clk 0:00:22]} 29. Re8+ {[%clk 0:00:08]}  Kg7 {[%clk 0:00:22]} 30. Bxf7 {[%clk 0:00:08]}  Rxf2 {[%clk 0:00:07]} 31. Bxg6+ {[%clk 0:00:06]}  Kxg6 {[%clk 0:00:08]} 32. Rg8+ {[%clk 0:00:06]}  Kh6 {[%clk 0:00:08]} 33. Re8 {[%clk 0:00:03]}  Rg2+ {[%clk 0:00:08]} 34. Kf1 {[%clk 0:00:04]}  Rh2 {[%clk 0:00:08]} 35. Kg1 {[%clk 0:00:04]}  Rxh3 {[%clk 0:00:08]} 36. Ree7 {[%clk 0:00:01]}  Rxg3+ {[%clk 0:00:08]} 37. Kf1 {[%clk 0:00:01]}  Rf3+ {[%clk 0:00:05]} 38. Ke1 {[%clk 0:00:01]}  Kg5 {[%clk 0:00:03]} 39. Rxh7 {[%clk 0:00:02]}  Rfxb3 {[%clk 0:00:02]} 40. Rbg7+ {[%clk 0:00:02]}  Kf5 {[%clk 0:00:02]} 41. Rh5+ {[%clk 0:00:02]}  Ke6 {[%clk 0:00:03]} 42. Rxa5 {[%clk 0:00:03]}  Rb1+ {[%clk 0:00:03]} 43. Kd2 {[%clk 0:00:04]}  R1b2+ {[%clk 0:00:04]} 44. Kc1 {[%clk 0:00:02]}  Rh2 {[%clk 0:00:04]} 45. Ra6+ {[%clk 0:00:03]}  Kf5 {[%clk 0:00:04]} 46. Rf7 {[%clk 0:00:04]}  Rc3+ {[%clk 0:00:04]} 47. Kd1 {[%clk 0:00:04]}  Rd3+ {[%clk 0:00:04]} 48. Ke1 {[%clk 0:00:04]}  Rh6 {[%clk 0:00:05]} 49. Re7 {[%clk 0:00:04]}  Rd5 {[%clk 0:00:04]} 50. Ra4 {[%clk 0:00:04]}  Re5+ {[%clk 0:00:05]} 51. Rxe5+ {[%clk 0:00:04]}  fxe5 {[%clk 0:00:06]} 52. Kf2 {[%clk 0:00:05]}  Rh2+ {[%clk 0:00:06]} 53. Kf3 {[%clk 0:00:05]}  Ra2 {[%clk 0:00:07]} 54. Ra8 {[%clk 0:00:05]}  Ke6 {[%clk 0:00:07]} 55. Ke4 {[%clk 0:00:04]}  Re2+ {[%clk 0:00:07]} 56. Kd3 {[%clk 0:00:02]}  Ra2 {[%clk 0:00:08]} 57. Re8+ {[%clk 0:00:03]}  Kd7 {[%clk 0:00:07]} 58. Rxe5 {[%clk 0:00:03]}  Rxa3+ {[%clk 0:00:08]} 59. Ke4 {[%clk 0:00:03]}  Ra4+ {[%clk 0:00:07]} 60. Kf5 {[%clk 0:00:04]}  Kd6 {[%clk 0:00:07]} 61. Re4 {[%clk 0:00:05]}  Rxe4 {[%clk 0:00:07]} 62. Kxe4 {[%clk 0:00:05]} 1/2-1/2


[Site "https://www.chess.com"]

[Event "Titled Tuesday Blitz November 15 Early 2022"]
[White "Aaditya Dhingra"]
[Black "Iturrizaga Bonelli, Eduardo"]
[WhiteFideId "25678191"]
[BlackFideId "3901211"]
[WhiteElo "2054"]
[BlackElo "2637"]
[Result "1/2-1/2"]
[Round "06"]
[TimeControl "180+1"]
[Date "2022.11.16"]
[WhiteClock "0:00:29"]
[BlackClock "0:01:07"]

1. Nf3 {[%clk 0:03:00]}  Nf6 {[%clk 0:02:58]} 2. g3 {[%clk 0:03:00]}  b6 {[%clk 0:02:58]} 3. Bg2 {[%clk 0:03:00]}  Bb7 {[%clk 0:02:59]} 4. O-O {[%clk 0:03:00]}  c5 {[%clk 0:02:59]} 5. d3 {[%clk 0:03:01]}  d5 {[%clk 0:02:59]} 6. Nbd2 {[%clk 0:03:00]}  Nc6 {[%clk 0:02:59]} 7. e4 {[%clk 0:03:00]}  Qc7 {[%clk 0:03:00]} 8. Qe2 {[%clk 0:02:55]}  e6 {[%clk 0:02:58]} 9. Re1 {[%clk 0:02:46]}  Be7 {[%clk 0:02:55]} 10. Nf1 {[%clk 0:02:44]}  h6 {[%clk 0:02:52]} 11. Bf4 {[%clk 0:02:31]}  Qd8 {[%clk 0:02:27]} 12. e5 {[%clk 0:02:09]}  Nd7 {[%clk 0:02:26]} 13. h3 {[%clk 0:02:02]}  g5 {[%clk 0:02:18]} 14. Bd2 {[%clk 0:02:01]}  h5 {[%clk 0:02:16]} 15. g4 {[%clk 0:02:00]}  hxg4 {[%clk 0:02:14]} 16. hxg4 {[%clk 0:02:01]}  Qc7 {[%clk 0:02:12]} 17. Ng3 {[%clk 0:01:54]}  O-O-O {[%clk 0:02:06]} 18. c3 {[%clk 0:01:53]}  Ba6 {[%clk 0:01:59]} 19. Rac1 {[%clk 0:01:48]}  Rh4 {[%clk 0:01:54]} 20. Nxh4 {[%clk 0:01:43]}  gxh4 {[%clk 0:01:55]} 21. Nh5 {[%clk 0:01:43]}  Ndxe5 {[%clk 0:01:45]} 22. Bf4 {[%clk 0:01:42]}  Bd6 {[%clk 0:01:45]} 23. c4 {[%clk 0:01:35]}  dxc4 {[%clk 0:01:30]} 24. dxc4 {[%clk 0:01:33]}  Nd4 {[%clk 0:01:27]} 25. Qe4 {[%clk 0:01:31]}  Nxc4 {[%clk 0:01:27]} 26. Qa8+ {[%clk 0:01:18]}  Kd7 {[%clk 0:01:23]} 27. Nf6+ {[%clk 0:01:16]}  Ke7 {[%clk 0:01:24]} 28. Nd5+ {[%clk 0:01:15]}  Kd7 {[%clk 0:01:09]} 29. Nf6+ {[%clk 0:00:49]}  Ke7 {[%clk 0:01:09]} 30. Nd5+ {[%clk 0:00:42]}  Kd7 {[%clk 0:01:07]} 31. Nf6+ {[%clk 0:00:29]} 1/2-1/2


[Site "https://www.chess.com"]

[Event "Titled Tuesday Blitz November 15 Early 2022"]
[White "Acor, Corey"]
[Black "Rodriguez Fontecha, Marcos"]
[WhiteFideId "2024861"]
[BlackFideId "2256576"]
[WhiteElo "2340"]
[BlackElo "2263"]
[Result "1-0"]
[Round "06"]
[TimeControl "180+1"]
[Date "2022.11.16"]
[WhiteClock "0:00:59"]
[BlackClock "0:01:08"]

1. e4 {[%clk 0:02:59]}  e6 {[%clk 0:03:00]} 2. d3 {[%clk 0:02:58]}  d5 {[%clk 0:03:00]} 3. Nd2 {[%clk 0:02:58]}  Nf6 {[%clk 0:03:00]} 4. g3 {[%clk 0:02:56]}  Nc6 {[%clk 0:03:00]} 5. Bg2 {[%clk 0:02:57]}  dxe4 {[%clk 0:03:00]} 6. dxe4 {[%clk 0:02:56]}  e5 {[%clk 0:03:00]} 7. Ngf3 {[%clk 0:02:56]}  Bc5 {[%clk 0:03:00]} 8. O-O {[%clk 0:02:54]}  O-O {[%clk 0:03:00]} 9. b3 {[%clk 0:02:51]}  a5 {[%clk 0:02:59]} 10. Bb2 {[%clk 0:02:49]}  Re8 {[%clk 0:02:58]} 11. Nc4 {[%clk 0:02:45]}  Qxd1 {[%clk 0:02:42]} 12. Raxd1 {[%clk 0:02:46]}  Bg4 {[%clk 0:02:33]} 13. h3 {[%clk 0:02:31]}  Bxf3 {[%clk 0:02:27]} 14. Bxf3 {[%clk 0:02:32]}  b5 {[%clk 0:02:27]} 15. Ne3 {[%clk 0:01:59]}  a4 {[%clk 0:02:26]} 16. Nd5 {[%clk 0:01:49]}  Nxd5 {[%clk 0:01:58]} 17. Rxd5 {[%clk 0:01:49]}  Nb4 {[%clk 0:01:59]} 18. Rxc5 {[%clk 0:01:48]}  a3 {[%clk 0:01:31]} 19. Bxe5 {[%clk 0:01:20]}  Nxa2 {[%clk 0:01:30]} 20. Rxb5 {[%clk 0:01:09]}  c6 {[%clk 0:01:30]} 21. Rc5 {[%clk 0:01:09]}  Nb4 {[%clk 0:01:26]} 22. Ra1 {[%clk 0:01:02]}  a2 {[%clk 0:01:16]} 23. Bd6 {[%clk 0:01:01]}  Re6 {[%clk 0:01:13]} 24. e5 {[%clk 0:01:00]}  Ra6 {[%clk 0:01:08]} 25. Rc4 {[%clk 0:00:59]} 1-0


[Site "https://www.chess.com"]